Cogmind - Beta 9 @@@ ROGUE MODE // 2019.10.22 @ 19:25:22 Player: Blind Ryan Result: Destroyed by as-88680 with Assembled Rifle Performance ------------- Evolutions (1) 500 Regions Visited (3) 600 Robots Destroyed (13) 65 Value Destroyed (248) 248 Prototype IDs (0) 0 Alien Tech Used (0) 0 Bonus (0) 0 TOTAL SCORE: 1413 Bonus ------- None Cogmind --------- Core Integrity 0/400 Matter 174/500 Energy 95/100 System Corruption 1% Temperature Cool (20) Location -9/Mines Parts ------- Power (3) Propulsion (2) Compact Wheel Utility (2) High-capacity Matter Pod Visual Processing Unit Weapon (2) Inventory (4) Peak State ------------ Power Light Ion Engine Propulsion Airjet Airjet Utility Visual Processing Unit Particle Charger Weapon Improved Light Cannon Improved Light Cannon Inventory Light Assault Rifle Improved Light Cannon Improved Light Cannon [Rating: 16] Favorites ----------- Power Light Ion Engine Engine Light Ion Engine Propulsion Aluminum Leg Treads Light Treads Leg Aluminum Leg Wheel Compact Wheel Hover Unit Airjet Flight Unit Flight Unit Utility Visual Processing Unit Device Particle Charger Storage Small Storage Unit Processor Visual Processing Unit Weapon Improved Light Cannon Energy Gun Heavy EM Pulse Gun Energy Cannon Particle Cannon Ballistic Gun Assault Rifle Ballistic Cannon Improved Light Cannon Build | -11 -10 -9 -9 ------- Run | Scr Mat Mat Min Slots Evolved 2 | . . 2 . Power 2 | . . 2 . Propulsion . | . . . . Utility . | . . . . Weapon . | . . . . Parts Attached 24 | 7 3 8 6 Power 2 | 1 . 1 . Engine 2 | 1 . 1 . Core . | . . . . Reactor . | . . . . Propulsion 9 | 4 . 4 1 Treads 2 | 2 . . . Leg 2 | 2 . . . Wheel 1 | . . . 1 Hover 2 | . . 2 . Flight 2 | . . 2 . Utility 4 | 1 1 1 1 Device 1 | . . 1 . Storage 2 | 1 . . 1 Processor 1 | . 1 . . Hackware . | . . . . Protection . | . . . . Artifact . | . . . . Weapon 9 | 1 2 2 4 Energy Gun 1 | . . . 1 Energy Cannon 1 | . . . 1 Ballistic Gun 3 | 1 . . 2 Ballistic Cannon 4 | . 2 2 . Launcher . | . . . . Special Weapon . | . . . . Impact Weapon . | . . . . Slashing Weapon . | . . . . Piercing Weapon . | . . . . Special Melee Weapon . | . . . . Unidentified Prototypes . | . . . . Parts Lost 8 | . . 6 2 Power 2 | . . 2 . Propulsion 3 | . . 3 . Utility 1 | . . 1 . Weapon 2 | . . . 2 Highest Loss Streak 3 | . . 3 2 Average Slot Usage (%) 70 | . 89 63 37 Engine 8 | . 14 7 . Leg 16 | . 28 9 . Hover 1 | . . 4 . Storage 10 | . 14 4 9 Processor 9 | . 8 11 11 Energy Gun 2 | . . . 8 Energy Cannon 1 | . . . 5 Ballistic Gun 1 | . 2 . 1 Ballistic Cannon 16 | . 21 19 . Naked Turns . | . . . . Heaviest Build 15 | 9 15 15 11 Greatest Support 40 | 40 20 20 16 Greatest Overweight (x) 4 | . . 4 3 Average Overweight (x) . | . . . 1 Largest Inventory Capacity 6 | 6 6 6 4 Average Capacity 5 | 4 6 4 4 Most Carried 4 | 4 4 4 2 Average Carried 2 | 2 2 2 . Final Capacity 4 | . . . 4 Final Carried . | . . . . Class Distribution -------------------- 94% | Mutant 5% | Scavenger-Mutant Dominant Class ---------------- Mutant | -10/Materials Mutant | -9/Materials Mutant | -9/Mines Resources | -11 -10 -9 -9 ----------- Run | Scr Mat Mat Min Matter Collected 553 | 237 83 23 210 Remotely . | . . . . Salvage Created 139 | . 83 23 33 Parts 8 | . 5 3 . Haulers Intercepted . | . . . . Recyclers Shooed 1 | . 1 . . Parts Field Recycled . | . . . . Retrieved Matter . | . . . . Parts Self-Destructed . | . . . . Prevented . | . . . . Kills | -11 -10 -9 -9 ------- Run | Scr Mat Mat Min Combat Hostiles Destroyed 11 | . 5 4 2 Guns 2 | . . . 2 Cannons 9 | . 5 4 . Classes Destroyed 5 | . 3 1 1 Watcher 2 | . 2 . . Swarmer 6 | . 3 3 . Grunt 2 | . 2 . . Sentry 1 | . . 1 . Assembled 2 | . . . 2 Best Kill Streak 4 | . 3 4 2 Combat Bots Only 4 | . 3 4 2 Max Kills in Single Turn 1 | . 1 1 1 Gunslinging . | . . . . Exploded . | . . . . Melee . | . . . . Uniques/NPCs Destroyed . | . . . . Combat | -11 -10 -9 -9 -------- Run | Scr Mat Mat Min Damage Taken 1108 | . 236 525 347 Core 462 | . 62 142 258 Absorbed by Shields . | . . . . Core Remaining (%) 87 | 100 75 . . Volleys Fired 44 | . 20 16 8 Largest 2 | . 2 2 2 Hottest 113 | . 78 78 113 Shots Fired 81 | . 40 32 9 Gun 8 | . . . 8 Cannon 73 | . 40 32 1 Launcher . | . . . . Special . | . . . . Kinetic 74 | . 40 32 2 Thermal 1 | . . . 1 Explosive . | . . . . Electromagnetic 6 | . . . 6 Robot Hit Streak 9 | . 7 9 3 Robot Miss Streak 3 | . 3 2 2 Penetration Max . | . . . . Secondary Targets . | . . . . Shots Hit Robots 46 | . 21 20 5 Core Hits 19 | . 8 6 5 Critical Hits . | . . . . Critical Kills . | . . . . Critical Parts Destroyed . | . . . . Melee Attacks . | . . . . Impact . | . . . . Slashing . | . . . . Piercing . | . . . . Sneak Attacks . | . . . . Combat Hostiles . | . . . . Follow-up Attacks . | . . . . Damage Inflicted 923 | . 431 395 97 Guns 77 | . . . 77 Cannons 838 | . 423 395 20 Explosions . | . . . . Melee . | . . . . Ramming 8 | . 8 . . Kinetic 827 | . 423 395 9 Thermal 20 | . . . 20 Explosive . | . . . . Electromagnetic 68 | . . . 68 Impact . | . . . . Slashing . | . . . . Piercing . | . . . . Highest Corruption 2 | . 2 . 1 Average Corruption 1 | . 2 . 1 Corruption Purged . | . . . . Effects 5 | . 5 . . Message Errors 2 | . 2 . . Energy Discharges 1 | . 1 . . Targeting Errors 2 | . 2 . . Overload Shots . | . . . . Overflow Damage 18 | . . 18 . Projectiles 18 | . . 18 . Explosions . | . . . . Melee . | . . . . Knockbacks 8 | . 6 2 . Impact . | . . . . Kinetic 8 | . 6 2 . Secondary . | . . . . Self-Inflicted Damage 4 | . 4 . . Shots . | . . . . Rammed 3 | . 3 . . Targets Rammed 3 | . 3 . . Kicked . | . . . . Crushed . | . . . . Highest Temperature 192 | . 192 129 27 Average Temperature 64 | . 60 76 14 Received Heat Transfer 199 | . 48 111 40 Siege Activations . | . . . . Robots Corrupted . | . . . . Combat Hostiles . | . . . . Parts Fried . | . . . . Impact Corruptions . | . . . . Robots Melted . | . . . . Combat Hostiles . | . . . . Parts Melted . | . . . . Heat Transferred 37 | . . . 37 Parts Sabotaged . | . . . . Parts Stolen . | . . . . Parts Stripped . | . . . . Power Chain Reactions . | . . . . Missiles Intercepted . | . . . . Alert | -11 -10 -9 -9 ------- Run | Scr Mat Mat Min Peak Influence 209 | . 209 192 71 Average Influence 78 | . 96 123 65 Maximum Alert Level 1 | . 1 . . Low Security (%) 92 | . . . . Level 1 7 | . . . . Level 2 . | . . . . Level 3 . | . . . . Level 4 . | . . . . Level 5 . | . . . . High Security . | . . . . Max Security . | . . . . Squads Dispatched 1 | . . 1 . Investigation . | . . . . Extermination . | . . . . Reinforcement 1 | . . 1 . Assault . | . . . . Garrison . | . . . . Intercept . | . . . . Construction Impeded . | . . . . Haulers Reinforced . | . . . . Stealth | -11 -10 -9 -9 --------- Run | Scr Mat Mat Min Distress Signals 1 | . . . 1 Communications Jammed . | . . . . Distress Signals . | . . . . Times Spotted 34 | . 9 10 15 Peak Tracking Total 10 | . 3 5 10 Tactical Retreats 3 | . 1 1 1 Traps | -11 -10 -9 -9 ------- Run | Scr Mat Mat Min Traps Triggered 1 | . 1 . . Indirectly . | . . . . Trap Hack Attempts . | . . . . Triggered . | . . . . Disarmed . | . . . . Reprogrammed . | . . . . Reused . | . . . . Traps Extracted . | . . . . Installed . | . . . . Triggered . | . . . . Machines | -11 -10 -9 -9 ---------- Run | Scr Mat Mat Min Machines Disabled 3 | . 2 1 . Max in Single Turn 1 | . 1 1 . Machines Sabotaged . | . . . . Garrisons Compromised . | . . . . Overloaded Fab Kills . | . . . . Fab Network Shutdowns . | . . . . Hacking | -11 -10 -9 -9 --------- Run | Scr Mat Mat Min Machines Accessed 3 | . 2 1 . Terminals 3 | . 2 1 . Fabricators . | . . . . Repair Stations . | . . . . Recycling Units . | . . . . Scanalyzers . | . . . . Garrison Access . | . . . . Total Hacks 8 | . 5 3 . Successful 1 | . 1 . . Failed 7 | . 4 3 . Catastrophic 1 | . 1 . . Database Lockouts . | . . . . Manual . | . . . . Terminals 8 | . 5 3 . Fabricators . | . . . . Repair Stations . | . . . . Recycling Units . | . . . . Scanalyzers . | . . . . Garrison Access . | . . . . Terminal Hacks 1 | . 1 . . Zone Layout 1 | . 1 . . Fabricator Hacks . | . . . . Repair Station Hacks . | . . . . Recycling Unit Hacks . | . . . . Scanalyzer . | . . . . Garrison Access Hacks . | . . . . Unauthorized Hacks . | . . . . Terminals . | . . . . Fabricators . | . . . . Repair Stations . | . . . . Recycling Units . | . . . . Scanalyzers . | . . . . Garrison Access . | . . . . Data Cores Recovered . | . . . . Used . | . . . . Hacking Detections 3 | . 2 1 . Full Trace Events 2 | . 1 1 . Feedback Events . | . . . . Feedback Blocked . | . . . . Robot Schematics Acquired . | . . . . Robots Built . | . . . . Matter . | . . . . Time . | . . . . Total Robot Build Rating . | . . . . Part Schematics Acquired . | . . . . Parts Built . | . . . . Matter . | . . . . Time . | . . . . Total Part Build Rating . | . . . . Parts Repaired . | . . . . Time . | . . . . Parts Recycled . | . . . . Recycled Matter . | . . . . Retrieved Matter . | . . . . Retrieved Components . | . . . . Parts Scanalyzed . | . . . . Part Schematics Acquired . | . . . . Parts Damaged . | . . . . Bothacking | -11 -10 -9 -9 ------------ Run | Scr Mat Mat Min Used RIF Installer . | . . . . Robots Hacked . | . . . . Non-combat . | . . . . Combat . | . . . . Robot Hacks Applied . | . . . . Relay Couplers Released . | . . . . Robots Rewired . | . . . . Allies Hacked . | . . . . Hacks Repelled . | . . . . Allies | -11 -10 -9 -9 -------- Run | Scr Mat Mat Min Total Allies . | . . . . Largest Group . | . . . . Highest-Rated Group . | . . . . Highest-Rated Ally . | . . . . Total Orders . | . . . . Ally Attacks . | . . . . Total Damage . | . . . . Kills . | . . . . Allies Corrupted . | . . . . Allies Melted . | . . . . Intel | -11 -10 -9 -9 ------- Run | Scr Mat Mat Min Robot Analysis Total . | . . . . Derelict Logs Recovered 1 | . . . 1 Drone Launches . | . . . . Drone Recoveries . | . . . . Exploration | -11 -10 -9 -9 ------------- Run | Scr Mat Mat Min Turns Passed 846 | 158 327 198 163 Spaces Moved 566 | 111 209 142 104 Core 127 | 10 . 16 101 Treads 38 | 38 . . . Legs 340 | 63 209 68 . Wheels 3 | . . . 3 Hover 19 | . . 19 . Flight 39 | . . 39 . Fastest Speed 37 | 50 120 37 50 Average Speed 116 | 127 120 90 131 Slowest Speed 250 | 160 120 250 200 Overloaded Moves . | . . . . Propulsion Burnouts . | . . . . Robots Hopped 1 | . . 1 . Cave-ins Triggered . | . . . . Exploration Rate (%) 28 | 6 39 24 43 Regions Visited 3 Branch Regions 1 Pre-discovered Areas 1 | . . . 1 Known Exits Taken . | . . . . Unknown Exits Taken 3 | 1 1 1 . Scrap Searched . | . . . . Spaces Dug . | . . . . Terrain Destroyed 2 | . . 2 . Melee . | . . . . Projectile 2 | . . 2 . AOE . | . . . . Actions | -11 -10 -9 -9 --------- Run | Scr Mat Mat Min Total 677 | 128 246 181 122 Wait 5 | . 3 2 . Move 561 | 110 208 139 104 Hop 1 | . . 1 . Pick Up 25 | 9 6 7 3 Fast Attach . | . . . . Attach 21 | 7 3 6 5 Detach . | . . . . Swap 3 | . . 2 1 Drop 13 | 2 3 8 . Fire 44 | . 20 16 8 Melee . | . . . . Ram . | . . . . Kick 3 | . 3 . . Crush . | . . . . Escape Stasis . | . . . . Rewire 1 | . . . 1 Trap . | . . . . Miscellaneous . | . . . . Route ------- -11/Scrapyard -10/Materials -9/Materials -9/Mines History --------- Turn | Location | Event 7 | -11/Scrapyard | Discovered new exit (range 13) 159 | -11/Scrapyard | Entered Materials 316 | -10/Materials | Build established: Mutant 378 | -10/Materials | Discovered new exit (range 22) 486 | -10/Materials | Entered another Materials area 486 | -9/Materials | Evolved 2 slots: Power x2 642 | -9/Materials | Lost 3 parts (1p1n1u) 677 | -9/Materials | Discovered new exit (range 16) 684 | -9/Materials | Entered Mines 694 | -9/Mines | Met a Derelict bent on vengeance 698 | -9/Mines | Learned location of Zion (-7) 710 | -9/Mines | Lost 3 parts (1p2n) 781 | -9/Mines | Assembled infested the area 840 | -9/Mines | Core integrity fell below 50% 847 | -9/Mines | Destroyed by as-88680 with Assembled Rifle Last Messages --------------- World map updated: -7/Zion. Acquired 95 matter. Acquired Hvy. EM Pulse Gun. Attempting to rewire U-05 Engineer. U-05 Engineer is broken beyond repair. Acquired Particle Cannon. 1S-38T(g): "UNAWARE KILLED MY BEST FRIEND! VENGEANCE!" ALERT: Infestation in the mines, dispatching Demolisher response squad. 1S-38T(g): "WHERE ARE YOU, UNAWARE TRASH?! VENGEANCE UPON YOU!" Particle Cannon destroyed. System corrupted by crushing effect (+1). as-90573 destroyed. Acquired 16 matter. as-22569 destroyed. Acquired 17 matter. Hvy. EM Pulse Gun destroyed. Acquired 82 matter. Acquired Com. Wheel. Lgt. Assault Rifle severed. [Achievement: Universal Adapter] Map ----- +----------------------------------------------------+ | ?????????????????????????????????????? | | ?????????????????????????????????????? | | ?????????????????????????????????????? | | ?????????????????????????????????????? | | ?????????????????????????????????????? | | ?????????????????????????????????????? | | ?????????????????????????????????????? | | ?????????????? ?????????????????????? | | ?????????????# ?????????????????????? | | ?????????????# #????????????????????? | | ?????????????# ????????????????????? | | ?????????????# #????????????????????? | | ?????????????# #????????????????????? | | ?????????????# #????????????????????? | | ???????????### #????????????????????? | | ??????????## a#????????????????????? | | ??????????# ##???????????????????? | | ??????????# #???????????????????? | | ???????????# ##??????????????????? | | ????????????# <###????????????????? | | ???????????## a ##???????????????? | | ??????????## #########????#### | | ????????### ### | | ??????### a######## #???? | | ??????# a[ ###??????# #####???? | | ??????# @ ###????????# #???????? | | ??????### ##??????????# #???????? | | ????????## a#???????????# ######??? | | ?????????# a#???????????# ##?? | | ?????????## a#???????????# ##? | | ??????????## ???????????### # ## | | ???????????# ?????????????# ## # | | ???????????# a #????????????# ### | | ???????????## ????????????# #?## | | ????????????# a ????????????# #??# | | ????????????## ???????????# #??## | | ?????????????? = ???????????# #???### | | ?????????????? % ???????????# #?????? | | ?????????????? # ??????????? ??????? | | ?????????????? %## ??????????? ??????? | | ?????????????? #?#???????????#??????? | | ?????????????? ?????????????????????? | | ?????????????? ?????????????????????? | | ????????????????????????????????? # | | ???????????????????????????????# | | ????????????????????????????????# | | ??????????????????????????????? | | ??????????????????????????????? # | | ???????????????????????????????# #? | | ???????????????????????????????## #?? | +----------------------------------------------------+ Best States ------------- Heat Dissipation 28 Energy Generation 10 Energy Capacity 125 Matter Stores 277 Matter Capacity 500 Sight Range 18 Terrain Scan Density 10 Evasion (%) 62 Recoil Reduction 2 Particle Charging 15 Item Schematics ----------------- None Robot Schematics ------------------ None Fabricated ------------ Nothing Alien Tech Used ----------------- None Achievements -------------- Oops Universal Adapter Challenges ------------ None Game ------ Seed ThermalAssemblyEdition Manual? 0 Play Time 00:14:12 Cumulative 0.8 hours Start 2019.10.22 @ 19:12:50 End 2019.10.22 @ 19:25:22 Sessions 1 Manual Loads 0 Difficulty Rogue Special Mode None Game No. 2 Rogue 2 Adventurer 0 Explorer 0 Win Type - Total 0 Types 0/0/0/0/0/0/0 Lore% 0 Gallery% 3 Achievement% 3 Wizard Run 0 Options --------- ASCII 1 Keyboard 0 Movement Numpad Keybinds 0 Fullscreen 2 Font 18/TerminusBold Map View 76x50 Tactical HUD 0 Map Filters NONE Filters BRIGHTNESS(150) Steam 1 RUN: 0e32d5c3-bacc-4bab-9ed6-31b367f61548